lending/lending_fUSD_20260330
["ID","MTS","AMOUNT","RATE_DAILY","PERIOD"]
[419070128,1774830643702,-500.0,0.00013699,2]
[419070129,1774830643711,-500.0,0.00013699,2]
[419070130,1774830643722,-224.83675979,0.00013699,2]
[419070131,1774830643731,-500.0,0.00013699,2]
[419070132,1774830643741,-500.0,0.00013699,2]
[419070133,1774830643750,-500.0,0.00013699,2]
[419070134,1774830643761,-500.0,0.00013699,2]
[419070135,1774830643771,-518.29101627,0.00013699,2]
[419070136,1774830643780,-500.0,0.00013699,2]
[419070137,1774830643790,-500.0,0.00013699,2]
[419070138,1774830643800,-500.0,0.00013699,2]
[419070139,1774830643809,-210.78762468,0.00013699,2]
[419070140,1774830643819,-500.0,0.00013699,2]
[419070141,1774830643829,-563.40931566,0.00013699,2]
[419070142,1774830643838,-15555.58,0.000137,2]
[419070144,1774830643848,-1038.7,0.000137,2]
[419070146,1774830643857,-160.0,0.00013733,2]
[419070148,1774830643867,-160.0,0.00013733,2]
[419070150,1774830643877,-959.8630956,0.00013733,2]
[419070152,1774830643887,-3616.56,0.000138,2]
[419070154,1774830643897,-655.08694573,0.00013805,2]
[419070156,1774830643906,-341.56934882,0.00013805,2]
[419070158,1774830643916,-166.66,0.00013854,2]
[419070159,1774830643925,-5278.0,0.00013858,5]
[419070161,1774830643935,-1691.852148,0.00013888,2]
[419070163,1774830643945,-1691.852148,0.00013888,2]
[419070165,1774830643955,-1691.852148,0.00013888,2]
[419070167,1774830643966,-1691.852148,0.00013888,2]
[419070169,1774830643978,-1127.383711,0.00013888,2]
[419070171,1774830643988,-151.0,0.00013888,2]
[419070173,1774830643997,-1127.383711,0.00013888,2]
[419070175,1774830644007,-1127.383711,0.00013888,2]
[419070177,1774830644017,-151.0,0.00013888,2]
[419070179,1774830644027,-436.54633,0.00013888,2]
[419070181,1774830644036,-1127.383711,0.00013888,2]
[419070183,1774830644046,-151.0,0.00013888,2]
[419070185,1774830644056,-151.0,0.00013888,2]
[419070188,1774830644067,-1310.229428,0.00013888,2]
[419070189,1774830644076,-1310.229428,0.00013888,2]
[419070191,1774830644085,-1310.229428,0.00013888,2]
[419070193,1774830644095,-1310.229428,0.00013888,2]
[419070195,1774830644105,-364917.0939826,0.00013888,2]
[419070197,1774830644114,-5915.0,0.00013892,5]
[419070198,1774830644123,-2880.3,0.000139,2]
[419070199,1774830644133,-3135.01,0.000139,2]
[419070200,1774830644142,-4037.74,0.000139,2]
[419070201,1774830644152,-800.0,0.000139,5]
[419070202,1774830644161,-2000.0,0.000139,2]
[419070203,1774830644171,-162.0,0.00013937,3]
[419070204,1774830644181,-332.09,0.00013963,2]
[419070205,1774830644191,-151.0,0.00013972,2]
[419070206,1774830644201,-984.53,0.00014001,30]
[419070207,1774830644211,-300.0,0.00014004,2]
[419070208,1774830644222,-1115.0,0.00014032,2]
[419070209,1774830644231,-4609.0,0.00014033,2]
[419070210,1774830644241,-1152.0,0.00014054,2]
[419070211,1774830644252,-500.0,0.00014115,2]
[419070212,1774830644261,-500.0,0.00014115,2]
[419070213,1774830644270,-60000.0,0.00014115,2]
[419070214,1774830644279,-152.0,0.00014116,3]
[419070215,1774830644289,-3000.0,0.00014137,2]
[419070216,1774830644298,-2500.0,0.00014137,2]
[419070217,1774830644309,-1252.0,0.00014175,2]
[419070218,1774830644320,-18607.5808694,0.00014182,2]
[419070219,1774830644329,-578.20924308,0.00014241,2]
[419070220,1774830644339,-1428.38747117,0.00014241,2]
[419070221,1774830644350,-9552.16786547,0.00014241,2]
[419070222,1774830644361,-717.60346743,0.00014241,2]
[419070223,1774830644370,-500.0,0.00014241,2]
[419070224,1774830644379,-500.0,0.00014241,2]
[419070225,1774830644388,-500.0,0.00014241,2]
[419070226,1774830644398,-500.0,0.00014241,2]
[419070227,1774830644407,-500.0,0.00014241,2]
[419070228,1774830644416,-500.0,0.00014241,2]
[419070229,1774830644426,-500.0,0.00014241,2]
[419070230,1774830644435,-500.0,0.00014241,2]
[419070231,1774830644444,-500.0,0.00014241,2]
[419070232,1774830644453,-500.0,0.00014241,2]
[419070233,1774830644463,-500.0,0.00014241,2]
[419070234,1774830644474,-500.0,0.00014241,2]
[419070235,1774830644483,-500.0,0.00014241,2]
[419070236,1774830644493,-209.40437684,0.00014241,2]
[419070237,1774830644502,-209.40437684,0.00014241,2]
[419070238,1774830644511,-500.0,0.00014241,2]
[419070239,1774830644520,-151.0,0.00014241,2]
[419070240,1774830644530,-500.0,0.00014241,2]
[419070241,1774830644540,-500.0,0.00014241,2]
[419070242,1774830644548,-500.0,0.00014241,2]
[419070243,1774830644558,-500.0,0.00014241,2]
[419070244,1774830644568,-500.0,0.00014241,2]
[419070245,1774830644577,-500.0,0.00014241,2]
[419070246,1774830644586,-151.0,0.00014241,2]
[419070247,1774830644595,-500.0,0.00014241,2]
[419070248,1774830644605,-500.0,0.00014241,2]
[419070249,1774830644614,-500.0,0.00014241,2]
[419070250,1774830644624,-250.0,0.00014241,2]
[419070251,1774830644633,-250.0,0.00014241,2]
[419070252,1774830644643,-500.0,0.00014241,2]
[419070253,1774830644654,-250.0,0.00014241,2]
[419070254,1774830644663,-500.0,0.00014241,2]
[419070255,1774830644674,-250.0,0.00014241,2]
[419070256,1774830644683,-500.0,0.00014241,2]
[419070257,1774830644692,-693.3919763,0.00014241,2]
[419070258,1774830644702,-500.0,0.00014241,2]
[419070259,1774830644713,-250.0,0.00014241,2]
[419070260,1774830644725,-500.0,0.00014241,2]
[419070261,1774830644734,-250.0,0.00014241,2]
[419070262,1774830644743,-500.0,0.00014241,2]
[419070263,1774830644752,-500.0,0.00014241,2]
[419070264,1774830644761,-250.0,0.00014241,2]
[419070265,1774830644771,-174.61919141,0.00014241,2]
[419070266,1774830644780,-500.0,0.00014241,2]
[419070267,1774830644790,-250.0,0.00014241,2]
[419070268,1774830644799,-500.0,0.00014241,2]
[419070269,1774830644810,-250.0,0.00014241,2]
[419070270,1774830644819,-200.0,0.00014241,2]
[419070271,1774830644828,-250.0,0.00014241,2]
[419070272,1774830644838,-250.0,0.00014241,2]
[419070273,1774830644847,-279.9045709,0.00014241,2]
[419070274,1774830644857,-743.50770149,0.00014241,2]
[419070275,1774830644867,-500.0,0.00014241,2]
[419070276,1774830644878,-262.90206542,0.00014241,2]
[419070277,1774830644888,-500.0,0.00014241,2]
[419070278,1774830644898,-209.40437684,0.00014241,2]
[419070279,1774830644908,-500.0,0.00014241,2]
[419070280,1774830644918,-500.0,0.00014241,2]
[419070281,1774830644928,-500.0,0.00014241,2]
[419070282,1774830644939,-500.0,0.00014241,2]
[419070283,1774830644949,-500.0,0.00014241,2]
[419070284,1774830644958,-1000.0,0.00014247,2]
[419070285,1774830644967,-1000.0,0.00014247,2]
[419070286,1774830644979,-1000.0,0.00014247,2]
[419070287,1774830644989,-1000.0,0.00014247,2]
[419070288,1774830644998,-1000.0,0.00014247,2]
[419070289,1774830645008,-1000.0,0.00014247,2]
[419070290,1774830645018,-500.0,0.00014247,2]
[419070291,1774830645028,-1000.0,0.00014247,2]
[419070292,1774830645038,-1000.0,0.00014247,2]
[419070293,1774830645048,-500.0,0.00014247,2]
[419070294,1774830645059,-501.65522073,0.00014247,2]
[419070295,1774830645068,-500.0,0.00014247,2]
[419070296,1774830645078,-1000.0,0.00014247,2]
[419070297,1774830645088,-1000.0,0.00014247,2]
[419070298,1774830645100,-1000.0,0.00014247,2]
[419070299,1774830645110,-1000.0,0.00014247,2]
[419070300,1774830645120,-500.0,0.00014247,2]
[419070301,1774830645131,-1000.0,0.00014247,2]
[419070302,1774830645140,-1000.0,0.00014247,2]
[419070303,1774830645149,-166.66,0.0001427,2]
[419070304,1774830645158,-9889.63778337,0.00014296,2]
[419070305,1774830645167,-500.0,0.00014296,2]
[419070306,1774830645176,-151.0,0.00014296,2]
[419070307,1774830645186,-272.62944185,0.00014296,2]
[419070308,1774830645196,-460.64,0.00014328,2]
[419070309,1774830645206,-500.0,0.00014351,2]
[419070310,1774830645215,-151.0,0.00014351,2]
[419070311,1774830645228,-282.71673119,0.00014351,2]
[419070312,1774830645237,-3023.0,0.00014372,2]
[419070313,1774830645246,-2000.0,0.00014373,2]
[419070314,1774830645256,-4103.42,0.00014384,2]
[419070315,1774830645266,-500.0,0.00014384,2]
[419070316,1774830645276,-338.853,0.000144,2]
[419070317,1774830645286,-500.0,0.00014406,2]
[419070318,1774830645296,-151.0,0.00014406,2]
[419070319,1774830645308,-293.17725025,0.00014406,2]
[419070320,1774830645320,-3023.0,0.00014441,2]
[419070321,1774830645330,-500.0,0.00014461,2]
[419070322,1774830645339,-151.0,0.00014461,2]
[419070323,1774830645350,-304.02480851,0.00014461,2]
[419070324,1774830645359,-500.0,0.00014516,2]
[419070325,1774830645368,-151.0,0.00014516,2]
[419070326,1774830645378,-315.27372642,0.00014516,2]
[419070327,1774830645387,-500.0,0.00014571,2]
[419070328,1774830645397,-151.0,0.00014571,2]
[419070329,1774830645407,-326.9388543,0.00014571,2]
[419070330,1774830645418,-1600.0,0.0001462,2]
[419070331,1774830645428,-500.0,0.00014626,2]
[419070332,1774830645437,-151.0,0.00014626,2]
[419070333,1774830645448,-339.03559191,0.00014626,2]
[419070334,1774830645458,-500.0,0.00014627,2]
[419070335,1774830645467,-503.47432567,0.00014627,2]
[419070336,1774830645479,-500.0,0.00014681,2]
[419070337,1774830645488,-151.0,0.00014681,2]
[419070338,1774830645497,-166.66,0.00014686,2]
[419070339,1774830645507,-500.0,0.00014736,2]
[419070340,1774830645516,-151.0,0.00014736,2]
[419070341,1774830645526,-1312.71,0.00014762,30]
[419070342,1774830645536,-500.0,0.00014765,2]
[419070343,1774830645545,-500.0,0.00014765,2]
[419070344,1774830645554,-500.0,0.00014765,2]
[419070345,1774830645563,-500.0,0.00014765,2]
[419070346,1774830645573,-1115.0,0.0001477,2]
[419070347,1774830645583,-1481.23780761,0.00014789,2]
[419070348,1774830645592,-217.15233878,0.00014789,2]
[419070349,1774830645602,-151.0,0.00014789,2]
[419070350,1774830645612,-217.15233878,0.00014789,2]
[419070351,1774830645621,-719.04747942,0.00014789,2]
[419070352,1774830645631,-181.08010149,0.00014789,2]
[419070353,1774830645640,-200.0,0.00014789,2]
[419070354,1774830645649,-290.26104003,0.00014789,2]
[419070355,1774830645659,-771.01748645,0.00014789,2]
[419070356,1774830645669,-500.0,0.00014791,2]
[419070357,1774830645678,-151.0,0.00014791,2]
[419070358,1774830645688,-1502.2699292,0.00014795,2]
[419070359,1774830645698,-1510.44418561,0.00014795,2]
[419070360,1774830645708,-1083.85118063,0.00014795,2]
[419070361,1774830645717,-1500.0,0.00014795,2]
[419070362,1774830645727,-500.0,0.00014795,2]
[419070363,1774830645736,-1500.0,0.00014795,2]
[419070364,1774830645746,-1500.0,0.00014795,2]
[419070365,1774830645756,-902.73289396,0.00014795,2]
[419070366,1774830645766,-1007.9229115,0.00014795,2]
[419070367,1774830645776,-1500.0,0.00014795,2]
[419070368,1774830645786,-925.66563804,0.00014795,2]
[419070369,1774830645796,-1101.0,0.00014799,2]
[419070370,1774830645806,-2000.0,0.000148,2]
[419070371,1774830645815,-2000.0,0.000148,2]
[419070372,1774830645826,-150.0,0.00014832,2]
[419070373,1774830645836,-152.0,0.00014833,3]
[419070374,1774830645846,-3023.0,0.00014833,2]
[419070375,1774830645855,-150.0,0.00014853,2]
[419070376,1774830645864,-3023.0,0.00014892,2]
[419070377,1774830645874,-15555.58,0.000149,2]
[419070378,1774830645883,-1038.7,0.000149,2]
[419070380,1774830645893,-151.0,0.000149,2]
[419070381,1774830645903,-151.0,0.000149,2]
[419070382,1774830645912,-151.0,0.000149,2]
[419070383,1774830645921,-151.0,0.000149,2]
[419070384,1774830645931,-151.0,0.000149,2]
[419070385,1774830645941,-151.0,0.000149,2]
[419070386,1774830645950,-151.0,0.000149,2]
[419070387,1774830645960,-151.0,0.000149,2]
[419070388,1774830645969,-151.0,0.000149,2]
[419070389,1774830645982,-151.0,0.000149,2]
[419070390,1774830645991,-1101.0,0.00014903,2]
[419070392,1774830646000,-150.0,0.00014918,2]
[419070393,1774830646010,-1101.0,0.0001497,2]
[419070394,1774830646020,-1000.0,0.00014973,2]
[419070395,1774830646029,-1101.0,0.00014974,2]
[419070396,1774830646039,-1101.0,0.00014976,2]
[419070397,1774830646048,-1650.0,0.00014978,2]
[419070398,1774830646058,-1650.0,0.00014978,2]
[419070399,1774830646068,-1650.0,0.00014978,2]
[419070400,1774830646078,-1650.0,0.00014978,2]
[419070401,1774830646087,-1650.0,0.00014978,2]
[419070402,1774830646097,-1650.0,0.00014978,2]
[419070403,1774830646106,-1650.0,0.00014978,2]
[419070404,1774830646115,-1650.0,0.00014978,2]
[419070405,1774830646125,-1650.0,0.00014978,2]
[419070406,1774830646135,-1504.0,0.00014978,2]
[419070407,1774830646145,-172.051335,0.00014978,2]
[419070408,1774830646154,-172.051335,0.00014978,2]
[419070409,1774830646163,-172.051335,0.00014978,2]
[419070410,1774830646172,-172.051335,0.00014978,2]
[419070411,1774830646182,-418.495044,0.00014978,2]
[419070412,1774830646191,-418.495044,0.00014978,2]
[419070413,1774830646201,-418.495044,0.00014978,2]
[419070414,1774830646210,-418.495044,0.00014978,2]
[419070415,1774830646223,-1000.0,0.00014984,2]
[419070416,1774830646232,-195.19533811,0.00014985,2]
[419070417,1774830646241,-308.7287782,0.00014985,2]
[419070418,1774830646251,-300.0,0.00015,2]
[419070419,1774830646260,-161.4,0.00015,2]
[419070420,1774830646269,-151.0,0.00015,2]
[419070421,1774830646279,-151.0,0.00015,2]
[419070422,1774830646288,-235.31097595,0.00015006,2]
[419070423,1774830646298,-1000.0,0.00015007,2]
[419070424,1774830646307,-1000.0,0.00015036,2]
[419070425,1774830646317,-1000.0,0.00015053,2]
[419070426,1774830646326,-1050.0,0.00015059,2]
[419070427,1774830646336,-1050.0,0.00015059,2]
[419070428,1774830646347,-1050.0,0.00015059,2]
[419070429,1774830646357,-1050.0,0.00015059,2]
[419070430,1774830646367,-1050.0,0.00015059,2]
[419070431,1774830646376,-1050.0,0.00015059,2]
[419070432,1774830646386,-1050.0,0.00015059,2]
[419070433,1774830646395,-1050.0,0.00015059,2]
[419070434,1774830646404,-1050.0,0.00015059,2]
[419070435,1774830646414,-585.0,0.00015059,2]
[419070436,1774830646424,-1101.0,0.0001506,2]
[419070437,1774830646434,-1101.0,0.0001506,2]
[419070438,1774830646443,-900.0,0.00015068,2]
[419070439,1774830646454,-4103.42,0.00015068,2]
[419070440,1774830646464,-1000.0,0.0001507,2]
[419070441,1774830646475,-1000.0,0.0001507,2]
[419070442,1774830646484,-1000.0,0.00015072,2]
[419070443,1774830646494,-1101.0,0.00015074,2]
[419070444,1774830646503,-1101.0,0.00015086,2]
[419070445,1774830646513,-150.0,0.00015105,2]
[419070446,1774830646522,-249.371621,0.00015106,2]
[419070447,1774830646532,-1350.0,0.00015107,2]
[419070448,1774830646541,-1350.0,0.00015107,2]
[419070449,1774830646550,-1350.0,0.00015107,2]
[419070450,1774830646560,-1350.0,0.00015107,2]
[419070451,1774830646569,-1350.0,0.00015107,2]
[419070452,1774830646578,-1350.0,0.00015107,2]
[419070453,1774830646587,-1350.0,0.00015107,2]
[419070455,1774830646597,-1350.0,0.00015107,2]
[419070457,1774830646606,-1350.0,0.00015107,2]
[419070459,1774830646616,-1018.0,0.00015107,2]
[419070461,1774830646625,-1101.0,0.00015114,2]
[419070463,1774830646634,-1000.0,0.00015124,2]
[419070465,1774830646644,-1000.0,0.00015128,2]
[419070467,1774830646653,-1000.0,0.00015136,2]
[419070469,1774830646663,-1101.0,0.00015136,2]
[419070471,1774830646672,-1262.0,0.00015146,2]
[419070473,1774830646682,-150.0,0.00015146,2]
[419070475,1774830646693,-1216.0,0.00015146,2]
[419070477,1774830646702,-925.0,0.00015146,2]
[419070479,1774830646713,-6013.0,0.00015146,2]
[419070480,1774830646723,-415.0,0.00015146,2]
[419070482,1774830646732,-784.86,0.00015156,2]
[419070484,1774830646741,-191.98277884,0.00015174,2]
[419070486,1774830646751,-1000.0,0.00015175,2]
[419070488,1774830646761,-1000.0,0.00015183,2]
[419070490,1774830646770,-1101.0,0.00015191,2]
[419070492,1774830646779,-5000.0,0.000152,3]
[419070494,1774830646789,-3616.56,0.000152,2]
[419070496,1774830646798,-2000.0,0.000152,2]
[419070498,1774830646807,-350.0,0.00015203,2]
[419070500,1774830646817,-10000.0,0.00015205,2]
[419070502,1774830646826,-1000.0,0.00015231,2]
[419070504,1774830646835,-1000.0,0.00015237,2]
[419070506,1774830646844,-184.49,0.00015239,2]
[419070508,1774830646853,-3440.41210636,0.00015246,2]
[419070510,1774830646862,-1101.0,0.00015268,2]
[419070511,1774830646871,-216.373397,0.00015273,2]
[419070513,1774830646880,-216.373397,0.00015273,2]
[419070514,1774830646890,-216.373397,0.00015273,2]
[419070515,1774830646899,-216.373397,0.00015273,2]
[419070516,1774830646908,-151.0,0.00015273,2]
[419070517,1774830646918,-151.0,0.00015273,2]
[419070518,1774830646927,-151.0,0.00015273,2]
[419070519,1774830646936,-151.0,0.00015273,2]
[419070520,1774830646945,-184.49,0.00015288,2]
[419070521,1774830646955,-1000.0,0.00015295,2]
[419070522,1774830646964,-2880.3,0.000153,2]
[419070524,1774830646975,-3135.01,0.000153,2]
[419070526,1774830646984,-4037.74,0.000153,2]
[419070529,1774830646994,-1517.64,0.000153,2]
[419070532,1774830647004,-1000.0,0.00015301,2]
[419070534,1774830647013,-1101.0,0.00015306,2]
[419070536,1774830647022,-1101.0,0.00015312,2]
[419070538,1774830647033,-1000.0,0.00015319,2]
[419070540,1774830647042,-1570.0,0.00015321,2]
[419070542,1774830647051,-150.0,0.00015333,2]
[419070544,1774830647060,-1536.04360649,0.00015337,2]
[419070546,1774830647070,-225.18697532,0.00015337,2]
[419070548,1774830647079,-151.0,0.00015337,2]
[419070550,1774830647089,-225.18697532,0.00015337,2]
[419070552,1774830647098,-559.93197847,0.00015337,2]
[419070554,1774830647107,-187.78006525,0.00015337,2]
[419070556,1774830647116,-200.0,0.00015337,2]
[419070558,1774830647126,-301.00069851,0.00015337,2]
[419070560,1774830647135,-799.54513345,0.00015337,2]
[419070562,1774830647144,-184.49,0.00015337,2]
[419070564,1774830647153,-1000.0,0.00015338,2]
[419070566,1774830647163,-1000.0,0.00015342,2]
[419070568,1774830647172,-395.15417605,0.00015342,2]
[419070570,1774830647181,-2000.0,0.00015342,2]
[419070572,1774830647191,-2000.0,0.00015342,2]
[419070574,1774830647200,-411.90998007,0.00015373,2]
[419070576,1774830647210,-643.91396228,0.00015373,2]
[419070578,1774830647219,-150.0,0.00015376,2]
[419070580,1774830647229,-1000.0,0.00015382,2]
[419070582,1774830647239,-1000.0,0.00015386,2]
[419070584,1774830647248,-1101.0,0.00015388,2]
[419070587,1774830647258,-350.0,0.00015392,2]
[419070589,1774830647268,-161.0,0.000154,2]
[419070591,1774830647278,-2807.0,0.000154,2]
[419070593,1774830647287,-161.0,0.000154,2]
[419070595,1774830647296,-161.0,0.000154,2]
[419070596,1774830647306,-2807.0,0.000154,2]
[419070598,1774830647316,-512.13664836,0.000154,2]
[419070601,1774830647328,-493.39524185,0.0001541,2]
[419070603,1774830647338,-1000.0,0.00015427,2]
[419070605,1774830647348,-1000.0,0.00015429,2]
[419070607,1774830647357,-784.18,0.0001543,2]
[419070609,1774830647367,-6453.0,0.00015437,2]
[419070611,1774830647376,-1000.0,0.00015445,2]
[419070613,1774830647385,-150.0,0.00015445,2]
[419070634,1774830647669,-1000.0,0.00015446,2]
[419070635,1774830647679,-501.0,0.00015451,2]
[419070636,1774830647689,-713.0,0.00015451,2]
[419070637,1774830647699,-1000.0,0.00015451,2]
[419070638,1774830647710,-1000.0,0.00015455,2]
[419070639,1774830647721,-1613.0,0.00015459,2]
[419070640,1774830647730,-150.0,0.00015462,2]
[419070641,1774830647740,-1188.69408308,0.00015463,2]
[419070642,1774830647750,-1000.0,0.00015471,2]
[419070643,1774830647759,-150.0,0.00015477,2]
[419070644,1774830647768,-1000.0,0.00015477,2]
[419070645,1774830647777,-158.28505766,0.00015481,2]
[419070646,1774830647787,-150.0,0.00015485,2]
[419070647,1774830647797,-500.0,0.00015499,2]
[419070648,1774830647806,-500.0,0.00015499,2]
[419070649,1774830647816,-151.9011736,0.00015499,2]
[419070650,1774830647825,-500.0,0.00015499,2]
[419070651,1774830647834,-1000.0,0.00015499,2]
[419070652,1774830647843,-1000.0,0.00015499,2]
[419070653,1774830647852,-1230.38457987,0.000155,2]
[419070654,1774830647862,-1000.0,0.00015501,2]
[419070655,1774830647871,-4000.0,0.00015507,2]
[419070656,1774830647880,-3000.0,0.00015507,2]
[419070657,1774830647890,-2500.0,0.00015507,2]
[419070658,1774830647899,-350.0,0.00015511,3]
[419070659,1774830647909,-1000.0,0.00015513,2]
[419070660,1774830647918,-1640.88,0.00015524,30]
[419070661,1774830647927,-1000.0,0.00015529,2]
[419070662,1774830647936,-1000.0,0.00015539,2]
[419070663,1774830647945,-1000.0,0.0001554,2]
[419070664,1774830647955,-1115.0,0.00015548,2]
[419070665,1774830647964,-162.0,0.0001555,3]
[419070666,1774830647974,-152.0,0.0001555,3]
[419070667,1774830647983,-1000.0,0.00015557,2]
[419070668,1774830647993,-150.0,0.0001556,2]
[419070669,1774830648003,-1570.0,0.00015561,2]
[419070670,1774830648012,-1000.0,0.00015582,2]
[419070671,1774830648021,-1000.0,0.00015592,2]
[419070672,1774830648031,-1000.0,0.00015593,2]
[419070673,1774830648040,-2129.0,0.00015598,2]
[419070674,1774830648049,-5000.0,0.000156,3]
[419070675,1774830648058,-800.0,0.000156,5]
[419070676,1774830648067,-301.35162556,0.0001561,2]
[419070677,1774830648076,-150.0,0.00015615,2]
[419070678,1774830648085,-150.0,0.00015639,2]
[419070679,1774830648095,-168.19,0.00015648,2]
[419070680,1774830648104,-1000.0,0.00015653,2]
[419070681,1774830648114,-1000.0,0.00015671,2]
[419070682,1774830648124,-1882.0,0.00015671,2]
[419070683,1774830648133,-500.0,0.00015671,2]
[419070684,1774830648142,-1000.0,0.00015676,2]
[419070685,1774830648152,-350.0,0.0001568,2]
[419070686,1774830648161,-1000.0,0.00015687,2]
[419070687,1774830648171,-800.0,0.000157,5]
[419070688,1774830648180,-2000.0,0.000157,2]
[419070689,1774830648190,-1000.0,0.00015704,2]
[419070690,1774830648199,-1000.0,0.00015707,2]
[419070691,1774830648208,-162.0,0.0001572,2]
[419070692,1774830648217,-2807.0,0.0001572,2]
[419070693,1774830648229,-1570.0,0.0001572,2]
[419070694,1774830648238,-3902.0,0.00015721,2]
[419070695,1774830648248,-1258.63516052,0.00015723,2]
[419070696,1774830648257,-1000.0,0.00015733,2]
[419070697,1774830648267,-200.0,0.00015748,2]
[419070698,1774830648276,-150.0,0.00015748,2]
[419070699,1774830648285,-150.0,0.00015748,2]
[419070700,1774830648295,-150.0,0.00015748,2]
[419070701,1774830648304,-150.0,0.00015748,2]
[419070702,1774830648313,-150.0,0.00015748,2]
[419070703,1774830648323,-150.0,0.00015748,2]
[419070704,1774830648332,-150.0,0.00015748,2]
[419070705,1774830648341,-150.0,0.00015748,2]
[419070706,1774830648350,-150.0,0.00015748,2]
[419070707,1774830648360,-150.0,0.00015748,2]
[419070708,1774830648370,-339.0,0.00015753,2]
[419070709,1774830648379,-339.0,0.00015753,2]
[419070710,1774830648388,-4103.42,0.00015753,2]
[419070711,1774830648397,-214.70167578,0.00015756,2]
[419070712,1774830648406,-150.0,0.00015762,2]
[419070713,1774830648415,-150.0,0.00015769,2]
[419070714,1774830648425,-330.52578,0.00015773,2]
[419070715,1774830648434,-371.288842,0.00015773,2]
[419070716,1774830648443,-1000.0,0.00015779,2]
[419070717,1774830648452,-1000.0,0.00015781,2]
[419070718,1774830648461,-1000.0,0.00015783,2]
[419070719,1774830648470,-500.0,0.00015799,2]
[419070720,1774830648482,-500.0,0.00015799,2]
[419070721,1774830648491,-500.0,0.00015799,2]
[419070722,1774830648501,-324.85202994,0.00015799,2]
[419070723,1774830648510,-500.0,0.00015799,2]
[419070724,1774830648519,-500.0,0.00015799,2]
[419070725,1774830648528,-500.0,0.00015799,2]
[419070726,1774830648537,-500.0,0.00015799,2]
[419070727,1774830648546,-500.0,0.00015799,2]
[419070728,1774830648556,-500.0,0.00015799,2]
[419070729,1774830648565,-500.0,0.00015799,2]
[419070730,1774830648574,-500.0,0.00015799,2]
[419070731,1774830648583,-305.26063383,0.00015799,2]
[419070732,1774830648592,-500.0,0.00015799,2]
[419070733,1774830648602,-404.32730924,0.00015799,2]
[419070734,1774830648611,-444.6157,0.000158,2]
[419070735,1774830648620,-800.0,0.000158,5]
[419070736,1774830648630,-2257.22666049,0.00015807,2]
[419070737,1774830648639,-150.0,0.00015816,2]
[419070738,1774830648648,-1000.0,0.0001582,2]
[419070739,1774830648658,-2000.0,0.0001583,2]
[419070740,1774830648667,-2000.0,0.0001583,2]
[419070741,1774830648677,-2000.0,0.0001583,2]
[419070742,1774830648686,-2000.0,0.0001583,2]
[419070743,1774830648695,-2000.0,0.0001583,2]
[419070744,1774830648704,-2000.0,0.0001583,2]
[419070745,1774830648714,-1000.0,0.00015845,2]
[419070746,1774830648724,-1000.0,0.00015859,2]
[419070747,1774830648733,-500.0,0.00015862,2]
[419070748,1774830648742,-200.0,0.00015862,2]
[419070749,1774830648751,-500.0,0.00015864,2]
[419070750,1774830648761,-500.0,0.00015865,2]
[419070751,1774830648770,-500.0,0.00015867,2]
[419070752,1774830648779,-200.0,0.00015867,2]